[Event "Rapid Tournament (RAP)"]
[Site "Biel, Switzerland"]
[Date "2026.07.12"]
[Round "9.45"]
[White "Hajduk, Tomasz"]
[Black "Gheorghiu, Alexandru"]
[Result "1-0"]
[TimeControl "15 + 5"]
[WhiteTitle "-"]
[BlackTitle "-"]
[WhiteFideId "21811415"]
[BlackFideId "1363573"]
[WhiteElo "1879"]
[BlackElo "1647"]

1. e4 {[%clk 00:15:08]} {[%emt 00:00:03]} c6 {[%clk 00:15:06]} {[%emt
00:00:04]} 2. d4 {[%clk 00:15:11]} {[%emt 00:00:01]} d5 {[%clk 00:15:10]}
{[%emt 00:00:01]} 3. Nc3 {[%clk 00:15:00]} {[%emt 00:00:16]} dxe4 {[%clk
00:15:13]} {[%emt 00:00:02]} 4. Nxe4 {[%clk 00:15:04]} {[%emt 00:00:02]} Nf6
{[%clk 00:15:18]} 5. Nxf6+ {[%clk 00:15:03]} {[%emt 00:00:06]} exf6 {[%clk
00:15:22]} {[%emt 00:00:01]} 6. Nf3 {[%clk 00:15:05]} {[%emt 00:00:03]} Be6
{[%clk 00:15:26]} {[%emt 00:00:01]} 7. Be2 {[%clk 00:15:04]} {[%emt 00:00:07]}
c5 {[%clk 00:15:29]} {[%emt 00:00:01]} 8. O-O {[%clk 00:14:59]} {[%emt
00:00:09]} Nc6 {[%clk 00:15:33]} {[%emt 00:00:02]} 9. Bb5 {[%clk 00:14:41]}
{[%emt 00:00:23]} Qb6 {[%clk 00:15:10]} {[%emt 00:00:28]} 10. Bxc6+ {[%clk
00:13:32]} {[%emt 00:01:13]} bxc6 {[%clk 00:15:10]} {[%emt 00:00:05]} 11. c3
{[%clk 00:12:30]} {[%emt 00:01:08]} Rd8 {[%clk 00:15:06]} {[%emt 00:00:09]} 12.
Qe2 {[%clk 00:12:05]} {[%emt 00:00:30]} cxd4 {[%clk 00:15:07]} {[%emt
00:00:04]} 13. Nxd4 {[%clk 00:12:02]} {[%emt 00:00:08]} c5 {[%clk 00:15:04]}
{[%emt 00:00:08]} 14. Qb5+ {[%clk 00:09:02]} {[%emt 00:03:05]} Bd7 {[%clk
00:14:54]} {[%emt 00:00:15]} 15. Qe2+ {[%clk 00:08:25]} {[%emt 00:00:41]} Be6
{[%clk 00:14:43]} {[%emt 00:00:16]} 16. Nc2 {[%clk 00:06:13]} {[%emt 00:02:18]}
Bd6 {[%clk 00:14:41]} {[%emt 00:00:06]} 17. a4 {[%clk 00:05:51]} {[%emt
00:00:28]} O-O {[%clk 00:14:40]} {[%emt 00:00:05]} 18. a5 {[%clk 00:05:54]}
{[%emt 00:00:03]} Qc7 {[%clk 00:14:42]} {[%emt 00:00:03]} 19. h3 {[%clk
00:05:53]} {[%emt 00:00:05]} Rfe8 {[%clk 00:14:43]} {[%emt 00:00:04]} 20. Be3
{[%clk 00:05:45]} {[%emt 00:00:14]} f5 {[%clk 00:14:32]} {[%emt 00:00:15]} 21.
f4 {[%clk 00:05:42]} {[%emt 00:00:08]} Bd5 {[%clk 00:14:07]} {[%emt 00:00:30]}
22. a6 {[%clk 00:04:55]} {[%emt 00:00:53]} Re4 {[%clk 00:14:02]} {[%emt
00:00:09]} 23. Qf2 {[%clk 00:04:35]} {[%emt 00:00:27]} Bb3 {[%clk 00:13:34]}
{[%emt 00:00:31]} 24. Na3 {[%clk 00:04:15]} {[%emt 00:00:26]} Rde8 {[%clk
00:13:19]} {[%emt 00:00:20]} 25. Nb5 {[%clk 00:04:06]} {[%emt 00:00:14]} Qc6
{[%clk 00:12:54]} {[%emt 00:00:29]} 26. Nxd6 {[%clk 00:04:07]} {[%emt
00:00:05]} Qxd6 {[%clk 00:12:58]} {[%emt 00:00:01]} 27. Bxc5 {[%clk 00:03:23]}
{[%emt 00:00:49]} Qc6 {[%clk 00:13:01]} {[%emt 00:00:02]} 28. Bxa7 {[%clk
00:03:07]} {[%emt 00:00:21]} Re2 {[%clk 00:13:02]} {[%emt 00:00:03]} 29. Qg3
{[%clk 00:02:48]} Rd2 {[%clk 00:12:45]} {[%emt 00:00:46]} 30. Bd4 {[%clk
00:02:20]} g6 {[%clk 00:12:39]} {[%emt 00:00:43]} 31. Rfe1 {[%clk 00:01:55]}
Rxe1+ {[%clk 00:12:13]} {[%emt 00:01:02]} 32. Rxe1 {[%clk 00:01:59]} Rxb2
{[%clk 00:12:02]} {[%emt 00:00:18]} 33. a7 {[%clk 00:01:34]} Ra2 {[%clk
00:12:01]} {[%emt 00:00:37]} 34. Qg5 {[%clk 00:00:41]} {[%emt 00:00:57]} Bd5
{[%clk 00:11:28]} {[%emt 00:00:38]} 35. Qd8+ {[%clk 00:00:41]} {[%emt
00:00:05]} 1-0

[Event "Rapid Tournament (RAP)"]
[Site "Biel, Switzerland"]
[Date "2026.07.12"]
[Round "9.46"]
[White "Gunzinger, Severin"]
[Black "Villiger, Jan"]
[Result "0-1"]
[TimeControl "15 + 5"]
[WhiteTitle "-"]
[BlackTitle "-"]
[WhiteFideId "1362518"]
[BlackFideId "1340891"]
[WhiteElo "1607"]
[BlackElo "1846"]

1. d4 {[%clk 00:15:08]} Nf6 {[%clk 00:15:09]} {[%emt 00:00:02]} 2. c4 {[%clk
00:15:12]} {[%emt 00:00:02]} g6 {[%clk 00:15:13]} {[%emt 00:00:02]} 3. Nc3
{[%clk 00:15:15]} d5 {[%clk 00:15:16]} 4. cxd5 {[%clk 00:15:18]} {[%emt
00:00:02]} Nxd5 {[%clk 00:15:20]} {[%emt 00:00:03]} 5. e4 {[%clk 00:15:22]}
Nxc3 {[%clk 00:15:24]} 6. bxc3 {[%clk 00:15:25]} {[%emt 00:00:02]} Bg7 {[%clk
00:15:28]} 7. Nf3 {[%clk 00:15:27]} {[%emt 00:00:03]} c5 {[%clk 00:15:31]} 8.
Be3 {[%clk 00:15:29]} {[%emt 00:00:03]} Qa5 {[%clk 00:15:19]} {[%emt 00:00:17]}
9. Nd2 {[%clk 00:15:29]} {[%emt 00:00:05]} cxd4 {[%clk 00:14:45]} {[%emt
00:00:39]} 10. Nc4 {[%clk 00:15:32]} {[%emt 00:00:02]} Qc7 {[%clk 00:13:43]}
{[%emt 00:01:06]} 11. cxd4 {[%clk 00:15:34]} {[%emt 00:00:04]} O-O {[%clk
00:13:27]} {[%emt 00:00:21]} 12. Be2 {[%clk 00:15:17]} {[%emt 00:00:22]} Rd8
{[%clk 00:12:58]} {[%emt 00:00:34]} 13. Rb1 {[%clk 00:13:52]} {[%emt 00:01:31]}
e6 {[%clk 00:12:32]} {[%emt 00:00:31]} 14. O-O {[%clk 00:12:58]} {[%emt
00:00:58]} Nc6 {[%clk 00:12:35]} {[%emt 00:00:02]} 15. d5 {[%clk 00:12:11]}
{[%emt 00:00:52]} exd5 {[%clk 00:11:37]} {[%emt 00:01:03]} 16. exd5 {[%clk
00:12:12]} {[%emt 00:00:04]} Ne5 {[%clk 00:10:20]} {[%emt 00:01:22]} 17. Nxe5
{[%clk 00:11:03]} {[%emt 00:01:14]} Bxe5 {[%clk 00:10:23]} {[%emt 00:00:02]} 18.
h3 {[%clk 00:10:49]} {[%emt 00:00:19]} Qa5 {[%clk 00:09:08]} {[%emt 00:01:20]}
19. Bc4 {[%clk 00:09:41]} {[%emt 00:01:13]} b6 {[%clk 00:08:29]} {[%emt
00:00:45]} 20. Qb3 {[%clk 00:09:15]} {[%emt 00:00:31]} Bd6 {[%clk 00:07:01]}
{[%emt 00:01:33]} 21. Bg5 {[%clk 00:07:45]} {[%emt 00:01:34]} Rf8 {[%clk
00:06:15]} {[%emt 00:00:51]} 22. Bf6 {[%clk 00:07:15]} {[%emt 00:00:35]} Bf5
{[%clk 00:05:53]} {[%emt 00:00:27]} 23. Qe3 {[%clk 00:06:47]} {[%emt 00:00:33]}
Rfe8 {[%clk 00:05:55]} {[%emt 00:00:03]} 24. Rb5 {[%clk 00:04:38]} {[%emt
00:02:14]} Rxe3 {[%clk 00:04:26]} {[%emt 00:01:34]} 25. Rxa5 {[%clk 00:04:41]}
{[%emt 00:00:02]} Re4 {[%clk 00:04:21]} {[%emt 00:00:11]} 26. Ra4 {[%clk
00:04:34]} {[%emt 00:00:12]} Bd7 {[%clk 00:04:24]} {[%emt 00:00:01]} 27. f3
{[%clk 00:04:17]} {[%emt 00:00:23]} Rf4 {[%clk 00:04:13]} {[%emt 00:00:15]} 28.
Bg5 {[%clk 00:03:50]} {[%emt 00:00:32]} Bxa4 {[%clk 00:04:16]} {[%emt
00:00:02]} 29. Bxf4 {[%clk 00:03:51]} {[%emt 00:00:03]} Bxf4 {[%clk 00:04:20]}
{[%emt 00:00:02]} 30. Re1 {[%clk 00:03:45]} {[%emt 00:00:11]} Bd6 {[%clk
00:04:19]} {[%emt 00:00:06]} 31. Re2 {[%clk 00:03:21]} {[%emt 00:00:30]} Rc8
{[%clk 00:04:06]} {[%emt 00:00:17]} 32. Bd3 {[%clk 00:03:16]} {[%emt 00:00:11]}
Bg3 {[%clk 00:04:05]} {[%emt 00:00:05]} 33. Rb2 {[%clk 00:02:58]} {[%emt
00:00:23]} Rc1+ {[%clk 00:03:46]} {[%emt 00:00:25]} 34. Bf1 {[%clk 00:03:00]}
{[%emt 00:00:03]} a6 {[%clk 00:03:18]} {[%emt 00:00:33]} 35. d6 {[%clk
00:01:47]} {[%emt 00:01:18]} Bb5 {[%clk 00:03:10]} {[%emt 00:00:12]} 0-1

[Event "Rapid Tournament (RAP)"]
[Site "Biel, Switzerland"]
[Date "2026.07.12"]
[Round "9.47"]
[White "Filimonov, Arsenii"]
[Black "Gheorghiu, Harry"]
[Result "1-0"]
[TimeControl "15 + 5"]
[WhiteTitle "-"]
[BlackTitle "-"]
[WhiteFideId "34171584"]
[BlackFideId "1248839"]
[WhiteElo "1843"]
[BlackElo "1751"]

1. e4 {[%clk 00:15:09]} d5 {[%clk 00:15:10]} {[%emt 00:00:01]} 2. exd5 {[%clk
00:15:12]} {[%emt 00:00:01]} Nf6 {[%clk 00:15:14]} {[%emt 00:00:01]} 3. d4
{[%clk 00:15:14]} {[%emt 00:00:03]} Nxd5 {[%clk 00:15:17]} {[%emt 00:00:02]} 4.
c4 {[%clk 00:15:18]} Nf6 {[%clk 00:15:19]} {[%emt 00:00:02]} 5. Nc3 {[%clk
00:15:21]} {[%emt 00:00:03]} Bf5 {[%clk 00:15:21]} {[%emt 00:00:03]} 6. Nf3
{[%clk 00:15:23]} {[%emt 00:00:03]} e6 {[%clk 00:15:24]} {[%emt 00:00:02]} 7.
h3 {[%clk 00:15:18]} {[%emt 00:00:09]} Bb4 {[%clk 00:15:17]} {[%emt 00:00:12]}
8. Bd3 {[%clk 00:14:49]} {[%emt 00:00:35]} Ne4 {[%clk 00:14:29]} {[%emt
00:00:53]} 9. Bxe4 {[%clk 00:14:13]} {[%emt 00:00:40]} Bxe4 {[%clk 00:14:29]}
{[%emt 00:00:05]} 10. O-O {[%clk 00:14:13]} {[%emt 00:00:06]} Bxc3 {[%clk
00:14:14]} {[%emt 00:00:20]} 11. bxc3 {[%clk 00:14:16]} {[%emt 00:00:02]} O-O
{[%clk 00:14:06]} {[%emt 00:00:13]} 12. Re1 {[%clk 00:13:29]} {[%emt 00:00:51]}
Bc6 {[%clk 00:13:29]} {[%emt 00:00:43]} 13. Ne5 {[%clk 00:13:26]} {[%emt
00:00:07]} b6 {[%clk 00:13:09]} {[%emt 00:00:27]} 14. Nxc6 {[%clk 00:13:25]}
{[%emt 00:00:06]} Nxc6 {[%clk 00:13:11]} {[%emt 00:00:02]} 15. Qf3 {[%clk
00:13:10]} {[%emt 00:00:19]} Na5 {[%clk 00:13:00]} {[%emt 00:00:17]} 16. Qd3
{[%clk 00:12:50]} {[%emt 00:00:25]} Qf6 {[%clk 00:12:29]} {[%emt 00:00:35]} 17.
Re4 {[%clk 00:11:45]} {[%emt 00:01:10]} Qg6 {[%clk 00:11:40]} {[%emt 00:00:54]}
18. Qe2 {[%clk 00:10:25]} {[%emt 00:01:26]} h5 {[%clk 00:11:18]} {[%emt
00:00:26]} 19. Rh4 {[%clk 00:09:15]} {[%emt 00:01:14]} Rad8 {[%clk 00:10:43]}
{[%emt 00:00:42]} 20. Rxh5 {[%clk 00:08:57]} {[%emt 00:00:23]} Rfe8 {[%clk
00:09:54]} {[%emt 00:00:54]} 21. Bf4 {[%clk 00:07:57]} {[%emt 00:01:03]} f6
{[%clk 00:08:19]} {[%emt 00:01:42]} 22. Rh4 {[%clk 00:07:25]} {[%emt 00:00:37]}
c5 {[%clk 00:07:53]} {[%emt 00:00:31]} 23. Rg4 {[%clk 00:07:03]} {[%emt
00:00:27]} Qf5 {[%clk 00:06:52]} {[%emt 00:01:05]} 24. dxc5 {[%clk 00:06:45]}
{[%emt 00:00:23]} bxc5 {[%clk 00:06:42]} {[%emt 00:00:15]} 25. Bc7 {[%clk
00:06:37]} {[%emt 00:00:13]} Nc6 {[%clk 00:04:20]} {[%emt 00:02:28]} 26. Bxd8
{[%clk 00:06:39]} {[%emt 00:00:03]} Rxd8 {[%clk 00:04:22]} {[%emt 00:00:03]} 27.
Rd1 {[%clk 00:06:12]} {[%emt 00:00:31]} Rb8 {[%clk 00:04:02]} {[%emt 00:00:26]}
28. Rd7 {[%clk 00:04:47]} {[%emt 00:01:30]} Rb1+ {[%clk 00:03:22]} {[%emt
00:00:45]} 29. Kh2 {[%clk 00:04:50]} {[%emt 00:00:02]} g5 {[%clk 00:03:25]}
{[%emt 00:00:02]} 30. Rg3 {[%clk 00:04:24]} {[%emt 00:00:31]} Ne5 {[%clk
00:03:14]} {[%emt 00:00:16]} 31. Rd8+ {[%clk 00:03:53]} {[%emt 00:00:36]} Kf7
{[%clk 00:02:52]} {[%emt 00:00:26]} 32. Qh5+ {[%clk 00:03:34]} {[%emt
00:00:25]} Ke7 {[%clk 00:02:29]} {[%emt 00:00:28]} 33. Qe8# {[%emt 00:00:04]}
1-0

[Event "Rapid Tournament (RAP)"]
[Site "Biel, Switzerland"]
[Date "2026.07.12"]
[Round "9.49"]
[White "Erb, Bernhard"]
[Black "Cousin, Ismael"]
[Result "1/2-1/2"]
[TimeControl "15 + 5"]
[WhiteTitle "-"]
[BlackTitle "-"]
[WhiteFideId "1319809"]
[BlackFideId "1364561"]
[WhiteElo "1837"]
[BlackElo "1588"]

1. f4 {[%clk 00:15:03]} {[%emt 00:00:06]} e5 {[%clk 00:15:09]} {[%emt
00:00:02]} 2. fxe5 {[%clk 00:15:01]} {[%emt 00:00:07]} d6 {[%clk 00:15:11]}
{[%emt 00:00:03]} 3. Nf3 {[%clk 00:14:54]} {[%emt 00:00:12]} Nc6 {[%clk
00:14:47]} {[%emt 00:00:29]} 4. e3 {[%clk 00:13:54]} {[%emt 00:01:04]} dxe5
{[%clk 00:14:43]} {[%emt 00:00:09]} 5. Nc3 {[%clk 00:13:51]} {[%emt 00:00:09]}
Bg4 {[%clk 00:14:46]} {[%emt 00:00:02]} 6. Be2 {[%clk 00:13:48]} {[%emt
00:00:07]} Bd6 {[%clk 00:14:40]} {[%emt 00:00:12]} 7. Ne4 {[%clk 00:13:42]}
{[%emt 00:00:11]} Nf6 {[%clk 00:14:23]} {[%emt 00:00:21]} 8. Nxd6+ {[%clk
00:13:21]} {[%emt 00:00:27]} Qxd6 {[%clk 00:14:19]} {[%emt 00:00:09]} 9. O-O
{[%clk 00:13:21]} {[%emt 00:00:05]} h5 {[%clk 00:14:02]} {[%emt 00:00:22]} 10.
h3 {[%clk 00:13:10]} {[%emt 00:00:15]} Be6 {[%clk 00:13:01]} {[%emt 00:01:07]}
11. b3 {[%clk 00:11:41]} {[%emt 00:01:34]} Rh6 {[%clk 00:12:49]} {[%emt
00:00:17]} 12. Bb2 {[%clk 00:11:30]} {[%emt 00:00:16]} Rg6 {[%clk 00:12:51]}
{[%emt 00:00:02]} 13. Nh4 {[%clk 00:11:15]} {[%emt 00:00:20]} Rg3 {[%clk
00:12:31]} {[%emt 00:00:25]} 14. Nf5 {[%clk 00:10:15]} {[%emt 00:01:05]} Bxf5
{[%clk 00:12:27]} {[%emt 00:00:10]} 15. Rxf5 {[%clk 00:10:18]} {[%emt
00:00:02]} g6 {[%clk 00:12:26]} {[%emt 00:00:05]} 16. Rf1 {[%clk 00:09:57]}
{[%emt 00:00:26]} Qe6 {[%clk 00:11:43]} {[%emt 00:00:48]} 17. Kh2 {[%clk
00:09:40]} {[%emt 00:00:21]} Rg5 {[%clk 00:11:42]} {[%emt 00:00:07]} 18. Bc4
{[%clk 00:09:22]} {[%emt 00:00:23]} Qd6 {[%clk 00:11:44]} {[%emt 00:00:03]} 19.
Qe2 {[%clk 00:08:59]} {[%emt 00:00:29]} O-O-O {[%clk 00:11:43]} {[%emt
00:00:06]} 20. a4 {[%clk 00:08:43]} {[%emt 00:00:20]} Ne4 {[%clk 00:10:06]}
{[%emt 00:01:42]} 21. Bd3 {[%clk 00:08:36]} {[%emt 00:00:11]} Nc5 {[%clk
00:09:49]} {[%emt 00:00:23]} 22. Kh1 {[%clk 00:08:26]} {[%emt 00:00:15]} f5
{[%clk 00:09:49]} {[%emt 00:00:06]} 23. Ba3 {[%clk 00:08:07]} {[%emt 00:00:23]}
Qd5 {[%clk 00:09:06]} {[%emt 00:00:48]} 24. Bc4 {[%clk 00:07:38]} {[%emt
00:00:34]} Qd6 {[%clk 00:08:52]} {[%emt 00:00:20]} 25. d3 {[%clk 00:07:28]}
{[%emt 00:00:15]} b6 {[%clk 00:08:25]} {[%emt 00:00:32]} 1/2-1/2

[Event "Rapid Tournament (RAP)"]
[Site "Biel, Switzerland"]
[Date "2026.07.12"]
[Round "9.50"]
[White "Hardt, Winfried"]
[Black "Liengme, Samuel"]
[Result "1-0"]
[TimeControl "15 + 5"]
[WhiteTitle "-"]
[BlackTitle "-"]
[WhiteFideId "1309293"]
[BlackFideId "1368141"]
[WhiteElo "1738"]
[BlackElo "1967"]

1. e4 {[%clk 00:13:38]} {[%emt 00:01:32]} c6 {[%clk 00:15:08]} {[%emt
00:00:02]} 2. d3 {[%clk 00:13:37]} {[%emt 00:00:06]} d5 {[%clk 00:15:10]}
{[%emt 00:00:02]} 3. Nf3 {[%clk 00:13:41]} {[%emt 00:00:02]} Bg4 {[%clk
00:15:08]} {[%emt 00:00:06]} 4. h3 {[%clk 00:13:25]} {[%emt 00:00:21]} Bxf3
{[%clk 00:14:55]} {[%emt 00:00:18]} 5. Qxf3 {[%clk 00:13:23]} {[%emt 00:00:08]}
dxe4 {[%clk 00:14:53]} {[%emt 00:00:08]} 6. dxe4 {[%clk 00:13:21]} {[%emt
00:00:06]} e6 {[%clk 00:14:49]} {[%emt 00:00:08]} 7. Bf4 {[%clk 00:12:57]}
{[%emt 00:00:30]} Bd6 {[%clk 00:14:43]} {[%emt 00:00:10]} 8. Nd2 {[%clk
00:12:38]} {[%emt 00:00:24]} Bxf4 {[%clk 00:14:30]} {[%emt 00:00:19]} 9. Qxf4
{[%clk 00:12:42]} {[%emt 00:00:01]} Nf6 {[%clk 00:14:33]} {[%emt 00:00:02]} 10.
O-O-O {[%clk 00:12:22]} {[%emt 00:00:25]} O-O {[%clk 00:14:23]} {[%emt
00:00:13]} 11. Bc4 {[%clk 00:12:17]} {[%emt 00:00:12]} b5 {[%clk 00:14:18]}
{[%emt 00:00:10]} 12. Bb3 {[%clk 00:12:08]} {[%emt 00:00:14]} Qe7 {[%clk
00:13:29]} {[%emt 00:00:52]} 13. g4 {[%clk 00:11:12]} {[%emt 00:01:02]} a5
{[%clk 00:13:26]} {[%emt 00:00:09]} 14. e5 {[%clk 00:10:14]} {[%emt 00:01:03]}
Nd5 {[%clk 00:13:18]} {[%emt 00:00:12]} 15. Bxd5 {[%clk 00:09:57]} {[%emt
00:00:22]} cxd5 {[%clk 00:13:20]} {[%emt 00:00:03]} 16. Nf3 {[%clk 00:09:35]}
{[%emt 00:00:27]} b4 {[%clk 00:11:56]} {[%emt 00:01:30]} 17. Nd4 {[%clk
00:09:00]} {[%emt 00:00:40]} a4 {[%clk 00:11:26]} {[%emt 00:00:35]} 18. Kb1
{[%clk 00:08:25]} {[%emt 00:00:40]} Nd7 {[%clk 00:11:03]} {[%emt 00:00:28]} 19.
Nc6 {[%clk 00:06:15]} {[%emt 00:02:14]} Qc5 {[%clk 00:10:54]} {[%emt 00:00:14]}
20. Nxb4 {[%clk 00:06:13]} {[%emt 00:00:07]} Rfb8 {[%clk 00:10:57]} {[%emt
00:00:03]} 21. a3 {[%clk 00:06:13]} {[%emt 00:00:05]} Nb6 {[%clk 00:10:10]}
{[%emt 00:00:51]} 22. Qd4 {[%clk 00:05:47]} {[%emt 00:00:32]} Qc7 {[%clk
00:09:55]} {[%emt 00:00:19]} 23. Rd3 {[%clk 00:05:26]} {[%emt 00:00:27]} Nc4
{[%clk 00:09:46]} {[%emt 00:00:13]} 24. f4 {[%clk 00:05:05]} {[%emt 00:00:26]}
Ra5 {[%clk 00:07:59]} {[%emt 00:01:51]} 25. Ka2 {[%clk 00:05:00]} {[%emt
00:00:12]} Rab5 {[%clk 00:07:57]} {[%emt 00:00:05]} 26. b3 {[%clk 00:04:11]}
{[%emt 00:00:56]} Na5 {[%clk 00:06:32]} {[%emt 00:01:30]} 27. Rc3 {[%clk
00:02:50]} {[%emt 00:01:26]} Qb7 {[%clk 00:05:57]} {[%emt 00:00:25]} 28. Rc5
{[%clk 00:02:16]} {[%emt 00:00:54]} Rc8 {[%clk 00:02:39]} {[%emt 00:03:23]} 29.
Rxc8+ {[%clk 00:01:47]} {[%emt 00:00:34]} Qxc8 {[%clk 00:02:43]} {[%emt
00:00:01]} 30. bxa4 {[%clk 00:01:17]} {[%emt 00:00:35]} Rb7 {[%clk 00:01:58]}
{[%emt 00:00:47]} 31. Rb1 {[%clk 00:01:02]} {[%emt 00:00:22]} Nc4 {[%clk
00:01:47]} {[%emt 00:00:16]} 32. Rb3 {[%clk 00:00:50]} {[%emt 00:00:18]} Qd7
{[%clk 00:01:02]} {[%emt 00:00:51]} 33. Qc5 {[%clk 00:00:37]} {[%emt 00:00:16]}
Rc7 {[%clk 00:01:00]} {[%emt 00:00:07]} 34. Qb5 {[%clk 00:00:35]} {[%emt
00:00:07]} Qc8 {[%clk 00:00:48]} {[%emt 00:00:18]} 35. Qa6 {[%clk 00:00:15]}
{[%emt 00:00:23]} Qd8 {[%clk 00:00:24]} {[%emt 00:00:31]} 36. Nd3 {[%clk
00:00:14]} {[%emt 00:00:06]} Ne3 {[%clk 00:00:18]} {[%emt 00:00:11]} 37. c3
{[%clk 00:00:12]} {[%emt 00:00:07]} d4 {[%clk 00:00:18]} {[%emt 00:00:04]} 38.
c4 {[%clk 00:00:12]} {[%emt 00:00:04]} Rxc4 {[%clk 00:00:18]} {[%emt 00:00:07]}
39. Qb6 {[%clk 00:00:09]} {[%emt 00:00:08]} Rc2+ {[%clk 00:00:19]} {[%emt
00:00:04]} 40. Ka1 {[%clk 00:00:12]} {[%emt 00:00:02]} h5 {[%emt 00:00:07]} 41.
Qxd8+ {[%clk 00:00:15]} Kh7 {[%clk 00:00:21]} 42. Qb6 {[%clk 00:00:18]} {[%emt
00:00:02]} Rh2 {[%clk 00:00:22]} {[%emt 00:00:03]} 43. Nc1 {[%clk 00:00:20]}
{[%emt 00:00:05]} Rxh3 {[%clk 00:00:23]} {[%emt 00:00:04]} 44. Qxd4 {[%clk
00:00:19]} {[%emt 00:00:05]} Nc2+ {[%clk 00:00:26]} {[%emt 00:00:03]} 45. Kb2
{[%clk 00:00:15]} {[%emt 00:00:09]} Rxb3+ {[%clk 00:00:29]} {[%emt 00:00:02]}
46. Kxc2 {[%clk 00:00:16]} {[%emt 00:00:02]} Rxa3 {[%clk 00:00:32]} {[%emt
00:00:03]} 47. Qd3+ {[%clk 00:00:19]} {[%emt 00:00:03]} 1-0

[Event "Rapid Tournament (RAP)"]
[Site "Biel, Switzerland"]
[Date "2026.07.12"]
[Round "9.51"]
[White "Martin, Gerome"]
[Black "Schwab, Felix"]
[Result "0-1"]
[TimeControl "15 + 5"]
[WhiteTitle "-"]
[BlackTitle "-"]
[WhiteFideId "1360817"]
[BlackFideId "1311450"]
[WhiteElo "1757"]
[BlackElo "1945"]

1. e4 {[%clk 00:15:04]} {[%emt 00:00:05]} e5 {[%clk 00:15:10]} 2. Nc3 {[%clk
00:15:05]} {[%emt 00:00:04]} Nc6 {[%clk 00:15:14]} {[%emt 00:00:03]} 3. Bc4
{[%clk 00:15:00]} {[%emt 00:00:10]} Nf6 {[%clk 00:15:10]} {[%emt 00:00:08]} 4.
d3 {[%clk 00:15:00]} {[%emt 00:00:04]} Bb4 {[%clk 00:14:58]} {[%emt 00:00:18]}
5. Nge2 {[%clk 00:14:29]} {[%emt 00:00:36]} d5 {[%clk 00:14:45]} {[%emt
00:00:18]} 6. exd5 {[%clk 00:14:18]} {[%emt 00:00:16]} Nxd5 {[%clk 00:14:46]}
{[%emt 00:00:05]} 7. Bd2 {[%clk 00:14:13]} {[%emt 00:00:10]} Be6 {[%clk
00:14:22]} {[%emt 00:00:28]} 8. O-O {[%clk 00:12:49]} {[%emt 00:01:29]} O-O
{[%clk 00:12:33]} {[%emt 00:01:54]} 9. Ne4 {[%clk 00:09:38]} {[%emt 00:03:16]}
Be7 {[%clk 00:11:49]} {[%emt 00:00:49]} 10. N2g3 {[%clk 00:08:38]} {[%emt
00:01:05]} f5 {[%clk 00:11:02]} {[%emt 00:00:52]} 11. Nc3 {[%clk 00:08:25]}
{[%emt 00:00:18]} Kh8 {[%clk 00:10:55]} {[%emt 00:00:13]} 12. Qh5 {[%clk
00:07:32]} {[%emt 00:00:57]} Nf6 {[%clk 00:10:17]} {[%emt 00:00:43]} 13. Qe2
{[%clk 00:07:26]} {[%emt 00:00:11]} Bxc4 {[%clk 00:08:51]} {[%emt 00:01:32]} 14.
dxc4 {[%clk 00:07:27]} {[%emt 00:00:04]} Qd7 {[%clk 00:08:46]} {[%emt
00:00:10]} 15. Rad1 {[%clk 00:07:09]} {[%emt 00:00:22]} Qe6 {[%clk 00:08:39]}
{[%emt 00:00:12]} 16. Bg5 {[%clk 00:06:44]} {[%emt 00:00:30]} Nd4 {[%clk
00:08:27]} {[%emt 00:00:17]} 17. Rxd4 {[%clk 00:06:39]} {[%emt 00:00:10]} Rad8
{[%clk 00:08:15]} {[%emt 00:00:18]} 18. Rxd8 {[%clk 00:06:36]} {[%emt
00:00:08]} Rxd8 {[%clk 00:08:19]} 19. Bf4 {[%clk 00:05:49]} {[%emt 00:00:52]}
e4 {[%clk 00:07:42]} {[%emt 00:00:42]} 20. Bxc7 {[%clk 00:05:38]} {[%emt
00:00:15]} Rc8 {[%clk 00:07:33]} {[%emt 00:00:15]} 21. Bf4 {[%clk 00:04:47]}
{[%emt 00:00:55]} Rxc4 {[%clk 00:07:18]} {[%emt 00:00:20]} 22. Nxf5 {[%clk
00:03:42]} {[%emt 00:01:10]} Rxc3 {[%clk 00:06:18]} {[%emt 00:01:06]} 23. bxc3
{[%clk 00:02:06]} {[%emt 00:01:40]} Qxf5 {[%clk 00:06:17]} {[%emt 00:00:06]} 24.
Be3 {[%clk 00:01:59]} {[%emt 00:00:12]} b6 {[%clk 00:05:39]} {[%emt 00:00:44]}
25. Rd1 {[%clk 00:01:40]} {[%emt 00:00:23]} h5 {[%clk 00:04:25]} {[%emt
00:01:19]} 26. h3 {[%clk 00:01:33]} {[%emt 00:00:12]} Nd5 {[%clk 00:03:58]}
{[%emt 00:00:33]} 27. Qb5 {[%clk 00:00:36]} {[%emt 00:01:01]} Nxe3 {[%clk
00:03:49]} {[%emt 00:00:15]} 28. Qe8+ {[%clk 00:00:25]} {[%emt 00:00:16]} Kh7
{[%clk 00:03:34]} {[%emt 00:00:19]} 29. fxe3 {[%clk 00:00:29]} {[%emt
00:00:02]} Bc5 {[%clk 00:03:18]} {[%emt 00:00:21]} 30. Re1 {[%clk 00:00:23]}
{[%emt 00:00:11]} a5 {[%clk 00:03:03]} {[%emt 00:00:19]} 31. Qd8 {[%clk
00:00:19]} {[%emt 00:00:09]} Qe5 {[%clk 00:02:50]} {[%emt 00:00:18]} 32. Qh4
{[%clk 00:00:11]} {[%emt 00:00:12]} Bd6 {[%clk 00:02:35]} {[%emt 00:00:21]} 33.
g4 {[%clk 00:00:12]} {[%emt 00:00:05]} Qh2+ {[%clk 00:02:29]} {[%emt 00:00:11]}
34. Kf1 {[%clk 00:00:16]} Qh1+ {[%clk 00:02:31]} {[%emt 00:00:03]} 35. Ke2
{[%clk 00:00:20]} {[%emt 00:00:02]} Qg2+ {[%clk 00:02:07]} {[%emt 00:00:28]} 36.
Kd1 {[%clk 00:00:21]} {[%emt 00:00:04]} Qf3+ {[%clk 00:02:08]} {[%emt
00:00:04]} 37. Re2 {[%clk 00:00:21]} {[%emt 00:00:06]} g6 {[%clk 00:02:04]}
{[%emt 00:00:09]} 38. gxh5 {[%clk 00:00:19]} {[%emt 00:00:07]} gxh5 {[%clk
00:02:06]} {[%emt 00:00:02]} 39. Kd2 {[%clk 00:00:20]} {[%emt 00:00:04]} Qf5
{[%clk 00:01:46]} {[%emt 00:00:25]} 40. Rf2 {[%clk 00:00:08]} {[%emt 00:00:17]}
Qd5+ {[%clk 00:01:45]} {[%emt 00:00:06]} 41. Kc1 {[%clk 00:00:12]} Ba3+ {[%clk
00:01:48]} {[%emt 00:00:04]} 42. Kb1 {[%clk 00:00:06]} {[%emt 00:00:12]} Qd1#
{[%emt 00:00:06]} 0-1